fUSD/lending_fUSD_20250407
["ID","MTS","AMOUNT","RATE_DAILY","PERIOD"]
[357381999,1744027866476,-994.81,0.00052054,120]
[357382000,1744027866486,-500.0,0.00052054,120]
[357382001,1744027866496,-994.81,0.00052054,120]
[357382002,1744027866505,-994.81,0.00052054,120]
[357382003,1744027866515,-994.81,0.00052054,120]
[357382004,1744027866524,-500.0,0.00052054,120]
[357382005,1744027866533,-994.81,0.00052054,120]
[357382006,1744027866542,-99021.02,0.00052054,7]
[357382007,1744027866551,-500.0,0.00052054,120]
[357382008,1744027866560,-500.0,0.00052054,120]
[357382009,1744027866569,-500.0,0.00052054,120]
[357382010,1744027866578,-500.0,0.00052054,120]
[357382011,1744027866588,-500.0,0.00052054,120]
[357382012,1744027866597,-500.0,0.00052054,120]
[357382013,1744027866606,-500.0,0.00052054,120]
[357382014,1744027866615,-614.77,0.00052054,120]
[357382015,1744027866624,-2234.41,0.00052054,120]
[357382016,1744027866634,-655.72,0.00052054,120]
[357382017,1744027866642,-1040.46,0.00052054,120]
[357382018,1744027866651,-500.0,0.00052054,120]
[357382019,1744027866660,-500.0,0.00052054,120]
[357382020,1744027866670,-500.0,0.00052054,120]
[357382021,1744027866680,-500.0,0.00052054,120]
[357382022,1744027866690,-500.0,0.00052054,120]
[357382023,1744027866699,-582.31310301,0.00052054,120]
[357382024,1744027866707,-761.99,0.00052054,120]
[357382025,1744027866716,-500.0,0.00052054,120]
[357382026,1744027866725,-500.0,0.00052054,120]
[357382027,1744027866735,-500.0,0.00052054,120]
[357382028,1744027866743,-566.46,0.00052054,120]
[357382029,1744027866752,-842.89,0.00052054,120]
[357382030,1744027866761,-734.73,0.00052054,30]
[357382031,1744027866771,-828.31,0.00052054,120]
[357382032,1744027866779,-11818.12,0.00052054,120]
[357382033,1744027866789,-2091.177409,0.00052054,120]
[357382034,1744027866798,-500.0,0.00052054,10]
[357382035,1744027866807,-2091.177409,0.00052054,120]
[357382036,1744027866816,-500.0,0.00052054,120]
[357382037,1744027866826,-500.0,0.00052054,120]
[357382038,1744027866835,-500.0,0.00052054,120]
[357382039,1744027866844,-556.04,0.00052054,120]
[357382040,1744027866854,-796.42,0.00052054,120]
[357382041,1744027866863,-2091.177409,0.00052054,120]
[357382042,1744027866872,-217.68003768,0.00052054,120]
[357382043,1744027866882,-500.0,0.00052054,120]
[357382044,1744027866891,-2091.177409,0.00052054,120]
[357382045,1744027866900,-587.07,0.00052054,120]
[357382046,1744027866910,-2017.531787,0.00052054,120]
[357382047,1744027866921,-389.45108385,0.00052054,120]
[357382048,1744027867619,-110.54891615,0.00052054,120]
[357382049,1744027867628,-500.0,0.00052054,120]
[357382050,1744027867638,-686.24860804,0.00052054,120]
[357382051,1744027867648,-1005.46764699,0.00052054,120]
[357382052,1744027956323,299.82,0.00013699,2]
[357382053,1744027987894,781.251478,7.945e-05,2]
[357382054,1744028017981,284.83,0.00013699,2]
[357382055,1744028018364,284.83,0.00013699,2]
[357382056,1744028018728,284.83,0.00013699,2]
[357382057,1744028019748,284.83,0.00013699,2]
[357382058,1744028020156,284.83,0.00013699,2]
[357382059,1744028020760,261.95708109,0.00013699,2]
[357382060,1744028020785,22.87291891,0.00013699,2]
[357382061,1744028021109,284.83,0.00013699,2]
[357382062,1744028021475,284.83,0.00013699,2]
[357382063,1744028021835,284.83,0.00013699,2]
[357382064,1744028025138,284.83,0.00013699,2]
[357382065,1744028026037,284.83,0.00013699,2]
[357382066,1744028026238,284.83,0.00013699,2]
[357382067,1744028026553,284.83,0.00013699,2]
[357382068,1744028026891,284.83,0.00013699,2]
[357382069,1744028027436,284.83,0.00013699,2]
[357382070,1744028027778,284.83,0.00013699,2]
[357382071,1744028028140,284.83,0.00013699,2]
[357382072,1744028028554,284.83,0.00013699,2]
[357382073,1744028028882,284.83,0.00013699,2]
[357382074,1744028029184,284.90214598,0.00013699,2]
[357382075,1744028264244,821.78366416,0.00033,120]
[357382076,1744028490532,250.0,0.00019,2]
[357382077,1744028491612,300.0,0.00021,2]
[357382078,1744028607933,172.91381328,0.00021426,2]
[357382079,1744028675048,165.10455804,0.00021319,2]
[357382080,1744028734091,-327.38618672,0.00021426,2]
[357382081,1744028734115,-350.0,0.00023,2]
[357382082,1744028734138,-40.02617464,0.00025,2]
[357382084,1744028787524,-322.64617464,0.00025,2]
[357382085,1744028787537,-37.32765072,0.00025,2]
[357382086,1744028787546,-322.64617464,0.00025,2]
[357382087,1744028803276,384.4731,0.00042868,30]
[357382088,1744028828607,191.7856978,0.00042868,30]
[357382089,1744028831094,-530.93897989,0.00024,5]
[357382090,1744028833096,-228.05341777,0.00024,5]
[357382091,1744028834103,-489.78404995,0.00024,5]
[357382092,1744028840229,200.0,0.00042868,30]
[357382093,1744028840962,207.4,0.00042868,30]
[357382094,1744028841589,215.0738,0.00042868,30]
[357382095,1744028842261,223.0315306,0.00042868,30]
[357382096,1744028842943,231.28369723,0.00042868,30]
[357382097,1744028843792,239.84119403,0.00042868,30]
[357382098,1744028844456,248.71531821,0.00042868,30]
[357382099,1744028845163,257.91778498,0.00042868,30]
[357382100,1744028846353,267.46074303,0.00042868,30]
[357382101,1744028848049,277.35679052,0.00042868,30]
[357382102,1744028848314,-3751.22355239,0.00024,5]
[357382103,1744028848334,-955.415613,0.00024875,2]
[357382104,1744028848359,-448.02286483,0.00025,2]
[357382105,1744028848379,-256.14469854,0.00025,2]
[357382106,1744028848399,-8960.17148694,0.00025982,2]
[357382107,1744028848516,287.61899177,0.00042868,30]
[357382108,1744028848890,298.26089446,0.00042868,30]
[357382109,1744028849562,309.29654756,0.00042868,30]
[357382110,1744028850231,320.74051982,0.00042868,30]
[357382111,1744028851548,332.60791905,0.00042868,30]
[357382112,1744028852254,344.91441206,0.00042868,30]
[357382113,1744028852968,357.6762453,0.00042868,30]
[357382114,1744028853668,370.91026638,0.00042868,30]
[357382115,1744028854400,384.63394623,0.00042868,30]
[357382116,1744028855065,384.63394623,0.00042868,30]
[357382117,1744028879882,-260.62,0.000275,12]
[357382124,1744028921308,7998.86110565,0.00042868,90]
[357382125,1744028947100,-225.42516596,0.00025,2]
[357382126,1744028947121,-200.0,0.00025,2]
[357382127,1744028947142,-2143.27469279,0.00025,2]
[357382128,1744028947163,-1757.06665064,0.00025,2]
[357382129,1744028947184,-1024.72594309,0.00025,2]
[357382130,1744028947204,-161.01560776,0.00025,2]
[357382131,1744028947226,-1885.90314927,0.000251,2]
[357382132,1744028948126,-1366.35289154,0.000251,2]
[357382133,1744028948149,-3030.74717246,0.000259,2]
[357382134,1744028952087,-2166.41206565,0.000259,2]
[357382135,1744028952111,-500.0,0.00025973,2]
[357382136,1744028952140,-264.92067383,0.00025973,2]
[357382137,1744028952162,-67.71764231,0.00025982,2]
[357382138,1744028953111,-8150.36748263,0.00025982,2]
[357382139,1744028968127,-12095.17372,0.00025982,2]
[357382140,1744028969103,-2179.35106232,0.00025982,2]
[357382141,1744028970073,-1872.62934905,0.00025982,2]
[357382142,1744028993770,-89.38,0.000275,12]
[357382143,1744028993806,-89.38,0.000275,12]
[357382144,1744028993823,-260.62,0.000275,12]
[357382156,1744029031506,-868.0,0.00025981,2]
[357382157,1744029031516,-542.54215506,0.00025982,2]
[357382158,1744029031618,-1285.90345045,0.00025982,2]
[357382159,1744029031629,-1498.78949728,0.00025982,2]
[357382160,1744029031641,-731.71376175,0.00025982,2]
[357382161,1744029031675,-6857.98028969,0.00025982,2]
[357382162,1744029031731,-284.23252147,0.00025982,2]
[357382163,1744029031743,-385.1781132,0.00025982,2]
[357382164,1744029031756,-2833.59609436,0.00025982,2]
[357382165,1744029031768,-2870.44053836,0.00025982,2]
[357382167,1744029031798,-4951.45323182,0.00025982,2]
[357382169,1744029031809,-956.55262638,0.00025982,2]
[357382172,1744029031824,-7142.10989975,0.00025982,2]
[357382181,1744029037481,-4460.03840653,0.00025982,2]
[357382182,1744029037493,-1897.746352,0.00025982,2]
[357382183,1744029037610,-531.2076681,0.00025982,2]
[357382184,1744029037625,-1563.46598488,0.00025982,2]
[357382185,1744029037651,-323.81951187,0.00025982,2]
[357382186,1744029037663,-9535.13835603,0.00025982,2]
[357382187,1744029037674,-617.14987146,0.00025982,2]
[357382188,1744029037707,-46005.28330531,0.00025982,2]
[357382189,1744029037718,-577.17289641,0.0002599,2]
[357382190,1744029037730,-4347.95300489,0.00026,2]
[357382191,1744029037739,-3055.92406596,0.00026,2]
[357382192,1744029037749,-25701.64715513,0.000264,2]
[357382193,1744029037759,-329.59,0.00026849,2]
[357382194,1744029037770,-450.0,0.00027,2]
[357382195,1744029037779,-500.0,0.00027957,5]
[357382196,1744029037789,-500.0,0.00027957,2]
[357382197,1744029037799,-500.0,0.00027957,5]
[357382198,1744029037810,-162.51,0.00028,2]
[357382199,1744029037822,-503.67275824,0.00028638,5]
[357382200,1744029037833,-500.0,0.00029,2]
[357382201,1744029037843,-9999.99,0.00029,2]
[357382202,1744029037853,-1511.78,0.00029854,2]
[357382203,1744029037863,-75535.78918484,0.000299,2]
[357382204,1744029037872,-5155.15843496,0.000299,2]
[357382205,1744029037882,-3055.46419323,0.0003,5]
[357382215,1744029037995,-311.184893,0.0003,5]
[357382218,1744029038008,-8142.68224768,0.0003,5]
[357382220,1744029038018,-2193.9525204,0.0003,2]
[357382222,1744029038028,-550.0,0.00031,2]
[357382225,1744029038038,-4650.85,0.00031,2]
[357382227,1744029038048,-150.99,0.00031,2]
[357382230,1744029038059,-2000.0,0.00031354,2]
[357382233,1744029038075,-18838.03123478,0.0003143,4]
[357382235,1744029038084,-1142.0,0.0003143,2]
[357382238,1744029038094,-1000.0,0.00031761,2]
[357382242,1744029038104,-181.41,0.00031761,2]
[357382244,1744029038115,-150.0,0.00031864,2]
[357382248,1744029038126,-1511.78,0.00032118,2]
[357382250,1744029038136,-5155.15843492,0.00032442,2]
[357382253,1744029038147,-339.0004,0.00032453,2]
[357382256,1744029038157,-329.59,0.00032646,2]
[357382259,1744029038168,-211.98,0.000329,30]
[357382262,1744029038178,-1852.42,0.00032902,2]
[357382264,1744029038188,-600.0,0.00033,2]
[357382266,1744029038198,-300.0,0.00033026,2]
[357382268,1744029038208,-21006.37,0.00033346,2]
[357382270,1744029038218,-500.0,0.00033437,5]
[357382272,1744029038228,-434.62863859,0.00033437,2]
[357382274,1744029038240,-200.0,0.00034058,2]
[357382276,1744029038250,-250.0,0.00034331,2]
[357382277,1744029038260,-1511.78,0.00034382,2]
[357382279,1744029038270,-5155.15843492,0.00034984,2]
[357382282,1744029038281,-650.0,0.00035,2]
[357382283,1744029038291,-170.4,0.00035,2]
[357382285,1744029038301,-250.0,0.00035588,2]
[357382287,1744029038311,-1000.0,0.00035732,2]
[357382289,1744029038334,-500.0,0.00035829,15]
[357382291,1744029038345,-163.03600764,0.00035829,15]
[357382293,1744029038355,-153.34827797,0.00035829,15]
[357382295,1744029038366,-584.3897,0.0003583,2]
[357382297,1744029038377,-2500.0,0.0003583,2]
[357382299,1744029038387,-2874.92631757,0.000359,2]
[357382301,1744029038399,-33535.39110655,0.0003593,7]
[357382304,1744029038412,-771.8188307,0.0003593,7]
[357382316,1744029038525,-58.99321919,0.0003593,7]
[357382456,1744029040144,-382.695,0.0003593,7]
[357382461,1744029040184,-757.74559623,0.0003593,7]
[357382464,1744029040195,-770.94271015,0.0003593,7]
[357382469,1744029040227,-58480.62507667,0.0003593,7]
[357382471,1744029040237,-643.14038601,0.00036,2]
[357382473,1744029040247,-300.0,0.00036,2]
[357382475,1744029040256,-816.50000768,0.00036498,2]
[357382477,1744029040267,-3411.69955865,0.000365,120]
[357382479,1744029040277,-17755.47147647,0.000366,2]
[357382481,1744029040287,-1511.78,0.00036646,2]
[357382483,1744029040296,-3221.27,0.00036959,14]
[357382485,1744029040305,-503.0990967,0.00036973,5]
[357382487,1744029040318,-355.47783704,0.00036973,5]
[357382489,1744029040327,-502.35256817,0.00036973,5]
[357382491,1744029040337,-500.0,0.00036973,5]
[357382493,1744029040346,-500.0,0.00036973,5]
[357382495,1744029040355,-700.0,0.00037,2]
[357382497,1744029040365,-152379.99101694,0.00037,2]
[357382499,1744029040374,-998.15702759,0.000372,103]
[357382501,1744029040384,-998.15702756,0.000372,103]
[357382503,1744029040393,-4188.63518024,0.0003759,2]
[357382505,1744029040403,-193.82,0.00037682,2]
[357382507,1744029040414,-199.657,0.0003774,49]
[357382509,1744029040424,-3781.931,0.0003774,49]
[357382511,1744029040433,-2874.92631753,0.00037775,2]
[357382513,1744029040447,-167.76667554,0.000378,2]
[357382515,1744029040457,-151.95805675,0.00037999,120]
[357382517,1744029040467,-151.38,0.00038151,2]
[357382519,1744029040477,-29354.15647426,0.00038161,2]
[357382521,1744029040487,-329.59,0.00038443,2]
[357382523,1744029040496,-500.0,0.00038578,3]
[357382525,1744029040507,-792.82,0.00038903,2]
[357382527,1744029040516,-1511.78,0.0003891,2]
[357382529,1744029040526,-351.44,0.0003893,2]
[357382531,1744029040541,-750.0,0.00039,2]
[357382560,1744029040814,-214.23852231,0.00039,120]
[357382562,1744029040826,-3570.99137609,0.00039,120]
[357382564,1744029040835,-167.52835503,0.00039,120]
[357382566,1744029040845,-2898.33,0.00039036,2]
[357382568,1744029040854,-500.0,0.00039182,5]
[357382570,1744029040863,-500.0,0.00039182,5]
[357382572,1744029040872,-1000.0,0.00039268,120]
[357382574,1744029040882,-2126.06496276,0.0003949,2]
[357382576,1744029040890,-209.38148751,0.0003962,2]
[357382578,1744029040900,-2874.92631753,0.0003965,2]
[357382580,1744029040910,-1000.0,0.00039702,2]
[357382582,1744029040920,-998.15702756,0.00039895,119]
[357382584,1744029040929,-500.0,0.00039973,5]
[357382586,1744029040940,-10054.45306465,0.0004,120]
[357382588,1744029040949,-723.38061955,0.0004,5]
[357382590,1744029040959,-588.90936084,0.0004,2]
[357382592,1744029040969,-5124.48467391,0.0004,30]
[357382594,1744029040978,-1941.53269806,0.0004,7]
[357382596,1744029040987,-8604.46423287,0.0004,2]
[357382598,1744029040997,-9997.32020136,0.0004,30]
[357382600,1744029041006,-405.78823983,0.0004,120]
[357382602,1744029041015,-378.36679028,0.0004,2]
[357382604,1744029041025,-5060.20959684,0.0004,2]
[357382606,1744029041035,-212.06202181,0.0004,2]
[357382608,1744029041044,-3001.31617396,0.0004,30]
[357382610,1744029041053,-155.94990164,0.0004,15]
[357382612,1744029041062,-19775.52124376,0.0004,30]
[357382816,1744029042888,-354.7624995,0.00037525,2]
[357382825,1744029043126,-4800.39593542,0.00037525,2]
[357382827,1744029043136,-343.66121695,0.0004,30]
[357382829,1744029043148,-630.210534,0.0004,30]
[357382833,1744029043183,-252.58751994,0.0004,30]
[357382835,1744029043196,-611.03624955,0.0004,30]
[357383097,1744029045663,-278379.98567165,0.0004,30]
[357383099,1744029045673,-5155.15843492,0.00040067,15]
[357383101,1744029045683,-300.0,0.00040227,2]
[357383103,1744029045692,-167.48,0.00040589,2]
[357383105,1744029045702,-351.15,0.00040619,120]
[357383107,1744029045712,-184.85,0.00040678,2]
[357383109,1744029045722,-11495.59119289,0.0004083,2]
[357383111,1744029045731,-792.82,0.00040848,2]
[357383113,1744029045741,-506.94264765,0.0004095,5]
[357383115,1744029045752,-469.73,0.00040977,2]
[357383117,1744029045762,-197.29904693,0.00041096,2]
[357383119,1744029045772,-151.79,0.00041096,2]
[357383121,1744029045783,-200.0,0.00041096,20]
[357383123,1744029045793,-500.0,0.00041096,31]
[357383125,1744029045802,-500.0,0.00041096,31]
[357383127,1744029045811,-500.0,0.00041096,31]
[357383129,1744029045825,-500.0,0.00041096,31]
[357383130,1744029045835,-500.0,0.00041096,31]
[357383131,1744029045844,-500.0,0.00041096,31]
[357383132,1744029045854,-500.0,0.00041096,31]
[357383133,1744029045863,-500.0,0.00041096,31]
[357383134,1744029045873,-500.0,0.00041096,31]
[357383135,1744029045882,-500.0,0.00041096,31]
[357383136,1744029045891,-500.0,0.00041096,31]
[357383137,1744029045900,-500.0,0.00041096,31]
[357383138,1744029045909,-500.0,0.00041096,31]
[357383139,1744029045919,-500.0,0.00041096,31]
[357383140,1744029045928,-404.80358531,0.00041096,31]
[357383141,1744029045955,-1511.78,0.00041174,2]
[357383143,1744029045964,-162.39,0.00041259,2]
[357383144,1744029045974,-2874.92631753,0.00041525,15]
[357383146,1744029045984,-300.0,0.00041597,2]
[357383148,1744029045993,-777.64,0.00041607,2]
[357383150,1744029046003,-777.64,0.00041617,2]
[357383152,1744029046012,-777.64,0.00041628,2]
[357383154,1744029046021,-777.64,0.00041639,2]
[357383156,1744029046030,-777.64,0.0004165,2]
[357383158,1744029046039,-777.64,0.00041661,2]
[357383160,1744029046049,-777.64,0.00041672,2]
[357383162,1744029046058,-777.64,0.00041683,2]
[357383164,1744029046067,-777.64,0.00041694,2]
[357383166,1744029046079,-777.64,0.00041705,2]
[357383169,1744029046089,-777.64,0.00041716,2]
[357383171,1744029046099,-777.64,0.00041727,2]
[357383173,1744029046108,-777.64,0.00041738,2]
[357383174,1744029046117,-777.64,0.00041749,2]
[357383177,1744029046126,-777.64,0.0004176,2]
[357383179,1744029046136,-777.64,0.00041771,2]
[357383181,1744029046145,-777.64,0.00041782,2]
[357383184,1744029046156,-777.64,0.00041793,2]
[357383185,1744029046165,-777.64,0.00041804,2]
[357383187,1744029046174,-777.64,0.00041815,2]
[357383189,1744029046184,-1719.3232525,0.00041868,14]
[357383191,1744029046194,-616.7359,0.00041873,2]
[357383194,1744029046203,-1109.10110882,0.00041874,30]
[357383195,1744029046213,-15557.6702854,0.00041874,30]
[357383197,1744029046223,-500.0,0.000419,30]
[357383199,1744029046233,-5066.8175,0.00041973,20]
[357383202,1744029046243,-338.57,0.00042,120]
[357383203,1744029046252,-278.6,0.00042,120]
[357383205,1744029046262,-22500.0,0.00042,120]
[357383208,1744029046272,-249.76,0.00042,120]
[357383209,1744029046281,-434.88,0.00042,120]
[357383211,1744029046290,-363.48,0.00042,120]
[357383213,1744029046300,-3241.93,0.00042,120]
[357383215,1744029046309,-1953.27,0.00042,120]
[357383218,1744029046319,-500.0,0.00042,120]
[357383219,1744029046332,-22500.0,0.00042225,120]
[357383221,1744029046341,-1538.1654,0.0004235,2]
[357383223,1744029046350,-17890.4878,0.0004235,2]
[357383225,1744029046360,-9215.1015,0.0004235,2]
[357383227,1744029046369,-811.1775,0.0004235,2]
[357383229,1744029046379,-151.38,0.0004241,2]
[357383231,1744029046389,-38759.26075099,0.0004242,45]
[357383233,1744029046398,-177.34800861,0.00042442,7]
[357383235,1744029046408,-22477.68,0.0004245,120]
[357383237,1744029046417,-525.02308956,0.00042452,10]
[357383239,1744029046426,-260.0,0.00042654,6]
[357383241,1744029046436,-500.0,0.000427,30]
[357383243,1744029046445,-5281.5601,0.0004273,2]
[357383245,1744029046454,-792.82,0.00042793,2]
[357383247,1744029046464,-12468.37508,0.0004282,3]
[357383249,1744029046473,-5959.22494892,0.0004282,3]
[357383251,1744029046483,-220.97,0.0004283,2]
[357383253,1744029046493,-250.0,0.0004283,2]
[357383255,1744029046502,-35734.08,0.0004283,2]
[357383257,1744029046512,-262.67,0.0004283,2]
[357383259,1744029046522,-1000.0,0.00042868,30]
[357383261,1744029046531,-150.0,0.00042868,2]
[357383263,1744029046542,-7667.24541652,0.00042868,5]
[357383265,1744029046552,-1604.43142776,0.00042868,7]
[357383267,1744029046562,-1293.6604,0.0004289,2]
[357383269,1744029046574,-200.0,0.000429,15]
[357383271,1744029046583,-213.951713,0.0004299,14]
[357383273,1744029046593,-213.951713,0.0004299,14]
[357383276,1744029046603,-151.0,0.0004299,14]
[357383277,1744029046612,-151.0,0.0004299,14]
[357383279,1744029046622,-465.413151,0.0004299,14]
[357383282,1744029046631,-465.413151,0.0004299,14]
[357383283,1744029046640,-500.0,0.00043,120]
[357383286,1744029046650,-200.0,0.00043098,120]
[357383288,1744029046660,-2874.92631753,0.000434,15]
[357383290,1744029046669,-1511.78,0.00043438,2]
[357383292,1744029046678,-5959.22494892,0.00043447,3]
[357383293,1744029046687,-1000.0,0.00043672,2]
[357383295,1744029046697,-167.48,0.00043938,2]
[357383298,1744029046707,-1113.55,0.00044,14]
[357383300,1744029046716,-200.0,0.0004409,7]
[357383302,1744029046730,-329.59,0.00044239,2]
[357383303,1744029046740,-1000.0,0.00044661,10]
[357383305,1744029046749,-1000.0,0.00044661,10]
[357383307,1744029046758,-792.82,0.00044739,2]
[357383310,1744029046769,-327.03767039,0.000449,30]
[357383312,1744029046779,-5959.22494892,0.00044975,3]
[357383314,1744029046788,-12468.37508,0.00044985,3]
[357383315,1744029046798,-5959.22494892,0.00044985,3]
[357383317,1744029046807,-17104.60908886,0.00044995,2]
[357383319,1744029046816,-199.61158168,0.00045,60]
[357383321,1744029046828,-351.15,0.00045098,120]
[357383323,1744029046837,-2874.92631753,0.00045276,15]
[357383325,1744029046848,-5959.22494892,0.00045659,3]
[357383327,1744029046857,-465.413151,0.00045669,14]
[357383329,1744029046867,-465.413151,0.00045669,14]
[357383331,1744029046876,-213.951713,0.00045679,14]
[357383333,1744029046885,-213.951713,0.00045679,14]
[357383335,1744029046895,-151.0,0.00045679,14]
[357383337,1744029046905,-151.0,0.00045679,14]
[357383339,1744029046914,-1113.55,0.000457,14]
[357383341,1744029046923,-1511.78,0.00045702,2]
[357383343,1744029046933,-23836.8997957,0.0004598,3]
[357383345,1744029046942,-49873.50032,0.0004599,3]
[357383347,1744029046952,-41714.5746424,0.0004599,3]
[357383349,1744029046962,-90014.21969151,0.00046,120]
[357383351,1744029046972,-5959.22494892,0.00046327,3]
[357383353,1744029046981,-12468.37508,0.00046337,3]
[357383355,1744029046991,-11918.4498978,0.00046337,3]
[357383357,1744029047000,-23900.0,0.00046347,2]
[357383359,1744029047010,-151.0,0.00046575,30]
[357383361,1744029047020,-5959.22494892,0.00046674,3]
[357383363,1744029047029,-792.82,0.00046684,2]
[357383365,1744029047038,-998.15702756,0.00046898,120]
[357383367,1744029047047,-163.51410357,0.00046921,10]
[357383369,1744029047057,-3512.00467884,0.00046975,2]
[357383371,1744029047066,-2000.0,0.000471,2]
[357383373,1744029047079,-2874.92631753,0.00047151,15]
[357383375,1744029047088,-170.0625,0.00047163,2]
[357383377,1744029047097,-1209.52,0.00047275,120]
[357383379,1744029047107,-167.48,0.00047288,2]
[357383381,1744029047117,-1113.55,0.000473,14]
[357383383,1744029047127,-1000.0,0.00047642,2]
[357383385,1744029047137,-11918.4498978,0.0004788,3]
[357383387,1744029047147,-151.38,0.0004788,2]
[357383389,1744029047156,-3136.01612884,0.0004789,4]
[357383391,1744029047170,-452.30000001,0.0004789,4]
[357383393,1744029047182,-679.4000004,0.0004789,4]
[357383398,1744029047222,-25.33926854,0.0004789,4]
[357383402,1744029047246,-1394.08224396,0.0004789,4]
[357383429,1744029047509,-1041.98334023,0.0004789,4]
[357383764,1744029146317,-350.0,0.00028579,12]
[357383765,1744029188174,625.288746,7.945e-05,2]
[357383767,1744029399125,280.0,0.00028929,30]
[357383768,1744029399166,280.0,0.00028929,30]
[357383769,1744029399429,280.0,0.00028929,30]
[357383770,1744029437209,-2328.8009,0.00025882,2]
[357383771,1744029437251,-631.6895,0.000263,2]
[357383772,1744029437296,-2677.21514429,0.000263,2]
[357383773,1744029437313,-435.68171857,0.000263,2]
[357383774,1744029437336,-435.68171857,0.000263,2]
[357383775,1744029437362,-435.68171857,0.000263,2]
[357383776,1744029589420,-480.97466293,0.000263,2]
[357383777,1744029638273,150.0,0.00027,120]
[357383778,1744029691485,-412.0,0.000263,2]
[357383779,1744029723759,-1435.82623707,0.000263,2]
[357383780,1744029745446,-231.42861849,0.00033024,30]
[357383781,1744029877276,1950.0,0.00042868,90]
[357383782,1744029950297,-153.00943709,0.00032865,20]
[357383783,1744029950320,-550.0,0.00033024,2]
[357383784,1744029950341,-250.0,0.00033024,2]
[357383785,1744029950362,-212.86793715,0.00033024,7]
[357383786,1744030029090,-300.0,0.00033024,7]
[357383787,1744030029113,-179.92019461,0.00033024,7]
[357383788,1744030029134,-246.58898783,0.00033024,7]
[357383789,1744030029156,-14617.80797019,0.00033025,2]
[357383790,1744030030146,-807.77102021,0.00033025,2]
[357383791,1744030037098,-166.8884071,0.00033024,2]
[357383792,1744030045085,-467.82061069,0.00033024,2]
[357383793,1744030045108,-347.06017522,0.00033025,2]
[357383794,1744030146101,-20646.42977872,0.00033025,2]
[357383795,1744030152079,-1614.82684915,0.00033025,2]
[357383796,1744030157249,-768.11985647,0.00033025,2]
[357383797,1744030166175,-8067.5511,0.00033025,2]
[357383859,1744030232348,-7692.0,0.00033025,2]
[357383861,1744030232365,-800.0,0.00033025,2]
[357383866,1744030232399,-2399.74875139,0.00033025,2]
[357383870,1744030232428,-414.72357922,0.00033025,2]
[357383874,1744030232454,-1227.364,0.00033025,2]
[357383878,1744030232496,-18.54315631,0.00033025,2]
[357383882,1744030232515,-3720.19473215,0.00033025,2]
[357383884,1744030232526,-5839.1125404,0.00033025,2]
[357384373,1744030237798,-903.45609244,0.00033025,2]
[357384375,1744030237808,-95.39030765,0.00033025,2]
[357384393,1744030237999,-81.97740407,0.00033025,2]
[357384395,1744030238009,-8.11987474,0.00033127,2]
[357384397,1744030238020,-567.96996222,0.00033127,2]
[357384400,1744030238032,-17115.61200001,0.00033127,2]
[357384414,1744030238169,-89357.51549633,0.00033127,2]
[357384416,1744030238178,-325.01,0.0003315,5]
[357384418,1744030238187,-500.0,0.0003325,5]
[357384420,1744030238196,-580.24595573,0.0003325,5]
[357384422,1744030238205,-152.98174216,0.0003325,5]
[357384424,1744030238218,-625.31369011,0.0003325,5]
[357384426,1744030238227,-289.98355149,0.0003325,5]
[357384428,1744030238236,-500.0,0.0003325,5]
[357384430,1744030238245,-514.90291555,0.00033267,2]
[357384431,1744030238255,-500.0,0.00033267,5]